[Event "44th Chess Olympiad Open 2022"]
[Site "Chennai"]
[Date "2022.08.06"]
[Round "8.9"]
[White "Stremavicius, Titas"]
[Black "Saric, Ivan"]
[Result "1/2-1/2"]
[WhiteElo "2532"]
[BlackElo "2680"]
[Annotator "TA"]
[PlyCount "92"]
[EventDate "2022.??.??"]
[TimeControl "60"]

{[%evp 11,92,0,13,0,0,-8,33,26,47,35,29,16,41,41,40,29,36,32,66,74,64,51,59,57,
59,55,58,46,52,50,71,67,71,61,58,60,58,58,72,80,89,82,74,43,94,18,18,14,59,56,
68,72,76,68,95,0,0,0,0,0,0,0,0,0,0,0,0,0,0,0,0,0,0,0,0,0,0,0,0,0,0,0,0]} 1. c4
{[%emt 0:00:04]} Nf6 {[%emt 0:00:12]} 2. Nc3 {[%emt 0:00:13]} e5 {[%emt 0:00:
00]} 3. Nf3 {[%emt 0:00:19]} Nc6 {[%emt 0:00:06]} 4. e3 {[%emt 0:00:41]} Bb4 {
[%emt 0:02:51]} 5. Qc2 {[%emt 0:00:09]} Bxc3 {[%emt 0:03:07]} 6. bxc3 {[%emt 0:
00:00]} O-O {[%emt 0:01:06]} 7. e4 {[%emt 0:00:07] A28: English Opening: Four
Knights Variation.} d6 {[%emt 0:00:08]} 8. g3 {[%emt 0:00:06]} a5 {[%emt 0:00:
00]} 9. Bg2 {[%emt 0:02:45] [#] White is slightly better.} a4 $146 {[%emt 0:00:
00]} ({Predecessor:} 9... Bg4 10. O-O Bxf3 11. Bxf3 Nd7 12. d3 Nc5 13. Bg2 Qd7
14. f4 exf4 15. Bxf4 Ne6 {1-0 (46) Kezin,R (2470)-Vaishali,R (2393) Chess.com
INT 2020}) 10. O-O {[%emt 0:03:49]} Bd7 {[%emt 0:00:43]} 11. Rb1 {[%emt 0:00:
00]} Qc8 {[%emt 0:00:48][%cal Yf6e4]} 12. Nh4 {[%emt 0:00:46][%cal Yf3h4,Yh4f5,
Yf5e3]} Bh3 {[%emt 0:02:24]} 13. Nf5 {[%emt 0:04:21]} Bxg2 {[%emt 0:00:00]} 14.
Kxg2 {[%emt 0:00:03]} g6 {[%emt 0:01:14]} 15. Ne3 {[%emt 0:01:16]} b6 {[%emt 0:
01:03]} 16. d3 {[%emt 0:03:24][%cal Yd2d3,Yd3d4]} Ne7 {[%emt 0:08:56]} 17. d4 {
[%emt 0:21:44]} Qb7 {[%emt 0:06:00]} 18. f3 {[%emt 0:00:00]} Nd7 {[%emt 0:00:
06]} 19. Nd5 {[%emt 0:12:49]} Nxd5 {[%emt 0:00:21]} 20. cxd5 {[%emt 0:00:03]}
f5 {[%emt 0:03:58]} 21. Bh6 {[%emt 0:03:07]} Rf7 {[%emt 0:00:12]} 22. g4 {
[%emt 0:03:18][%cal Rg4f5]} c6 {[%emt 0:05:51]} 23. exf5 {[%emt 0:03:49]} gxf5
{[%emt 0:00:13]} 24. gxf5 {[%emt 0:00:06]} cxd5 {[%emt 0:06:03]} 25. Kh1 {
[%emt 0:00:45]} Kh8 {[%emt 0:00:03]} 26. Rg1 {[%emt 0:00:00]} Nf6 {[%emt 0:00:
28]} 27. Rg3 {[%emt 0:07:06]} Ng8 {[%emt 0:12:30] [#]} ({Black should try} 
27... e4 $1 $14) 28. Be3 {[%emt 0:08:09] White is more active.} (28. Bg5 $1 $16
) 28... Ne7 $11 {[%emt 0:01:27]} 29. Rg5 {[%emt 0:00:00]} Qd7 {[%emt 0:02:26]
[%cal Re7f5]} 30. f6 {[%emt 0:00:13]} ({Much weaker is} 30. Rxb6 Nxf5 31. Qd2
e4 32. fxe4 Nxe3 33. Qxe3 Rf1+ 34. Kg2 Raf8 $15) 30... Rxf6 {[%emt 0:02:56]}
31. dxe5 {[%emt 0:00:06]} (31. Rh5 $2 e4 32. f4 (32. fxe4 $2 Qg4 $19) 32... Nf5
$19) 31... dxe5 {[%emt 0:00:15]} 32. Rxe5 {[%emt 0:00:10] aiming for Bd4.} (32.
Rh5 Nf5 33. Qe2 Nxe3 34. Qxe3 Rg8 35. Qxe5 Qg7 $17) 32... Nc6 {[%emt 0:01:44] 
[#]} 33. Rxb6 {[%emt 0:04:30]} (33. Rg5 $1 $16) 33... Rxf3 {[%emt 0:01:54] The
position is equal.} 34. Rxc6 {[%emt 0:00:43][%cal Ye3d4] White threatens Bd4!
and mate.} Rxe3 {[%emt 0:01:37]} (34... Qxc6 $2 35. Bd4 (35. Rh5 Rf1+ 36. Kg2
d4+ 37. Kxf1 Qh1+ 38. Bg1 Qf3+ 39. Qf2 Qxh5 $17) 35... Rf1+ 36. Kg2 $18) 35.
Rxe3 {[%emt 0:01:14][%cal Yc2d1,Ye5e3,Ye3f3,Yf3c3,Yc3c7,Yc7a7] Qd1! would kill
now.} Qxc6 $16 {[%emt 0:00:03] Endgame KQR-KQR} 36. Qd3 {[%emt 0:01:27] White
wants to mate with Qd4+.} d4+ {[%emt 0:01:07]} 37. Rf3 {[%emt 0:00:04]} Qxc3 {
[%emt 0:06:43]} 38. Qxc3 {[%emt 0:00:34]} (38. Qe4 {with more complications.}
Qc1+ 39. Kg2 Rg8+ 40. Rg3) 38... dxc3 {[%emt 0:00:07]} 39. Rxc3 $11 {[%emt 0:
00:01] KR-KR} Rb8 {[%emt 0:00:00]} 40. Rc7 {[%emt 0:02:06]} Rb1+ {[%emt 0:00:
16]} 41. Kg2 {[%emt 0:30:04]} Rb2+ {[%emt 0:30:03]} 42. Kg3 {[%emt 0:00:04]}
Rxa2 {[%emt 0:00:07]} 43. Ra7 {[%emt 0:00:03]} a3 {[%emt 0:00:25]} 44. h4 {
[%emt 0:00:47]} Ra1 {[%emt 0:02:52] And now ...a2 would win.} 45. Kg4 {[%emt 0:
00:37]} Rg1+ {[%emt 0:02:12]} 46. Kh3 {[%emt 0:00:08]} Ra1 {[%emt 0:02:03]
Weighted Error Value: White=0.10 (very precise) /Black=0.10 (very precise)}
1/2-1/2

[Event "44th Chess Olympiad Open 2022"]
[Site "Chennai"]
[Date "2022.08.06"]
[Round "8.10"]
[White "Nguyen, Thai Dai Van"]
[Black "Subelj, Jan"]
[Result "1/2-1/2"]
[WhiteElo "2629"]
[BlackElo "2498"]
[Annotator "TA"]
[PlyCount "24"]
[EventDate "2022.??.??"]
[TimeControl "60"]

{[%evp 9,24,0,9,19,36,20,91,31,64,50,51,57,51,31,1854,-616,-542]} 1. c4 {
[%emt 0:00:09]} e5 {[%emt 0:00:55]} 2. g3 {[%emt 0:00:43]} Nf6 {[%emt 0:01:31]}
3. Bg2 {[%emt 0:00:22]} c6 {[%emt 0:00:36]} 4. d4 {[%emt 0:02:09]} e4 {[%emt 0:
00:00]} 5. Bg5 {[%emt 0:03:39]} d5 {[%emt 0:10:25]} 6. Bxf6 {[%emt 0:05:09]
A20: English Opening: 1...e5.} Qxf6 {[%emt 0:00:21]} 7. Nc3 {[%emt 0:00:19] [#]
} Qd8 $146 {[%emt 0:08:41]} (7... Bb4 $11) ({Predecessor:} 7... Bb4 8. e3 O-O
9. Nge2 Be6 10. O-O Qe7 11. Nf4 Bxc3 12. bxc3 Nd7 13. Qb3 Nb6 14. cxd5 cxd5 {
½-½ (27) So,W (2754)-Anand,V (2767) Zagreb 2019}) 8. e3 {[%emt 0:25:58]} (8.
cxd5 $16 cxd5 9. e3 (9. Qb3 Be6 $14)) 8... Be6 {[%emt 0:12:23]} 9. Nge2 {
[%emt 0:00:27]} Bd6 {[%emt 0:06:36]} 10. Qb3 {[%emt 0:06:45]} Qb6 {[%emt 0:00:
00]} 11. cxd5 {[%emt 0:01:38]} Qb5 $2 {[%emt 0:07:14] [#]} 12. Qb4 $4 Qxb4 {
[%emt 0:00:33] Weighted Error Value: White=0.89/Black=0.29 (precise) . An
unexpected result.} 1/2-1/2

[Event "44th Chess Olympiad Open 2022"]
[Site "Chennai"]
[Date "2022.08.06"]
[Round "8.10"]
[White "Michalik, Peter"]
[Black "Dobrovoljc, Vid"]
[Result "1/2-1/2"]
[WhiteElo "2559"]
[BlackElo "2398"]
[Annotator "TA"]
[PlyCount "73"]
[EventDate "2022.??.??"]
[TimeControl "60"]

{[%evp 18,73,5,0,19,16,11,22,28,10,16,9,30,12,32,35,22,13,12,0,8,19,52,90,85,
32,59,51,49,34,34,43,62,69,76,20,20,16,21,19,14,-6,-4,-2,-2,-4,-3,-5,0,0,0,0,0,
0,0,0,0,0]} 1. e4 {[%emt 0:00:06]} c5 {[%emt 0:00:36]} 2. Nf3 {[%emt 0:00:07]}
Nc6 {[%emt 0:00:19]} 3. d4 {[%emt 0:01:13]} cxd4 {[%emt 0:00:11]} 4. Nxd4 {
[%emt 0:00:06]} Nf6 {[%emt 0:00:07]} 5. Nc3 {[%emt 0:00:06]} e5 {[%emt 0:00:33]
} 6. Ndb5 {[%emt 0:01:07]} d6 {[%emt 0:00:16]} 7. Nd5 {[%emt 0:03:33]} Nxd5 {
[%emt 0:00:43]} 8. exd5 {[%emt 0:00:07]} Ne7 {[%emt 0:01:07]} 9. c3 {[%emt 0:
00:00]} Nf5 {[%emt 0:00:35]} 10. Bd3 {[%emt 0:02:18] aiming for Qa4.} Be7 {
[%emt 0:06:43] B33: Sicilian: Pelikan and Sveshnikov Variations.} 11. O-O {
[%emt 0:00:13]} O-O {[%emt 0:03:56]} 12. a4 {[%emt 0:00:35][%cal Ya2a4,Ya4a5]}
Bd7 {[%emt 0:14:48]} 13. Kh1 {[%emt 0:03:52]} g6 {[%emt 0:08:42] [#]} 14. Na3
$146 {[%emt 0:05:44]} ({Predecessor:} 14. f4 a6 15. Na3 exf4 16. Bxf4 Bg5 17.
Nc4 Bxf4 18. Rxf4 Re8 19. Qg1 Rb8 20. a5 {0-1 (52) Molnar,E (2261) -Haring,V 
(2320) Liptovsky Mikulas 2018}) 14... Rc8 {[%emt 0:10:57]} 15. Nc4 {[%emt 0:01:
50]} Ng7 {[%emt 0:07:01]} 16. Be3 {[%emt 0:06:15]} b6 {[%emt 0:00:00]} 17. a5 {
[%emt 0:03:29][%cal Ra5b6]} Nf5 {[%emt 0:03:27]} 18. Bd2 {[%emt 0:00:00]} e4 {
[%emt 0:02:35]} 19. Be2 {[%emt 0:00:07]} Rc5 {[%emt 0:00:31]} 20. axb6 {
[%emt 0:13:58]} axb6 {[%emt 0:00:21] [#]} 21. Ne3 {[%emt 0:00:08]} (21. g4 $1
$16 {[%cal Rg4f5]} Bb5 22. Na3 (22. gxf5 Bxc4 23. Bxc4 Rxc4 $14) 22... Bxe2 23.
Qxe2) 21... Bg5 {[%emt 0:04:43]} 22. Nxf5 {[%emt 0:02:38]} Bxf5 {[%emt 0:02:49]
} 23. Bxg5 {[%emt 0:08:30]} Qxg5 {[%emt 0:00:06]} 24. Qd4 {[%emt 0:00:07]} Re8
{[%emt 0:18:30]} 25. b4 {[%emt 0:03:19]} Rcc8 {[%emt 0:00:00]} 26. c4 {[%emt 0:
02:54]} ({Reject} 26. Qxb6 Rxc3 27. Qxd6 Bc8 $11) (26. Bb5 $16 Re5 27. Bc6 (27.
Qxb6 Rxd5 28. Bc6 Rd2 $11)) 26... Bg4 $11 {[%emt 0:06:11] The position is
equal.} 27. Bxg4 {[%emt 0:09:55]} Qxg4 {[%emt 0:00:49]} 28. Rac1 {[%emt 0:00:
09]} Rb8 {[%emt 0:02:38]} 29. c5 {[%emt 0:11:43]} bxc5 {[%emt 0:00:05]} 30.
bxc5 {[%emt 0:00:08]} dxc5 {[%emt 0:00:15]} 31. Rxc5 {[%emt 0:00:09]} Qe2 {
[%emt 0:01:19][%cal Re2f1] [#]} 32. Rcc1 {[%emt 0:00:06]} Qd3 {[%emt 0:02:18]}
33. Rfd1 {[%emt 0:01:29][%cal Yf1d1,Yd1d4,Yd4e4,Ye4e2]} Qxd4 {[%emt 0:00:09]}
34. Rxd4 {[%emt 0:00:04]} Kg7 {[%emt 0:00:58]} 35. d6 {[%emt 0:00:19]} Red8 {
[%emt 0:00:29]} 36. Rxe4 {[%emt 0:02:12]} Rxd6 {[%emt 0:00:06]} 37. Re2 {
[%emt 0:00:05] Weighted Error Value: White=0.10 (very precise) /Black=0.07 
(flawless)} 1/2-1/2

[Event "44th Chess Olympiad Open 2022"]
[Site "Chennai"]
[Date "2022.08.06"]
[Round "8.10"]
[White "Sebenik, Matej"]
[Black "Navara, David"]
[Result "1/2-1/2"]
[WhiteElo "2512"]
[BlackElo "2688"]
[Annotator "TA"]
[PlyCount "192"]
[EventDate "2022.??.??"]
[TimeControl "60"]

{[%evp 38,192,102,72,72,75,75,71,79,67,72,52,50,52,48,48,48,48,42,31,34,0,0,0,
0,0,0,0,0,0,0,0,0,0,0,0,0,0,0,0,0,0,0,0,0,0,0,0,0,0,0,0,0,0,0,0,0,0,0,0,0,0,0,
0,0,0,0,0,0,0,0,0,0,0,0,0,0,0,0,0,0,0,0,0,0,0,0,0,0,0,0,0,0,0,0,0,0,0,0,0,0,0,
0,0,0,0,0,0,0,0,0,0,0,0,0,0,0,0,0,0,0,0,0,0,0,0,0,0,0,0,0,0,0,0,0,0,0,0,0,0,0,
0,0,0,0,0,0,0,0,0,0,0,0,0,0,0,0]} 1. c4 {[%emt 0:00:06]} e5 {[%emt 0:00:12]} 2.
Nc3 {[%emt 0:00:14]} Nf6 {[%emt 0:00:08]} 3. Nf3 {[%emt 0:00:14]} Nc6 {[%emt 0:
00:00]} 4. g3 {[%emt 0:00:22]} Bb4 {[%emt 0:02:57]} 5. Nd5 {[%emt 0:00:44]} e4
{[%emt 0:03:22]} 6. Nh4 {[%emt 0:01:07]} O-O {[%emt 0:01:04]} 7. Bg2 {[%emt 0:
00:00]} d6 {[%emt 0:03:46]} 8. b3 {[%emt 0:02:39]} Bc5 {[%emt 0:10:43]} 9. Bb2
{[%emt 0:20:56]} Bd4 {[%emt 0:01:17]} 10. Bxd4 {[%emt 0:03:20]} Nxd4 {[%emt 0:
00:00]} 11. e3 {[%emt 0:06:49]} g5 {[%emt 0:09:43]} 12. exd4 {[%emt 0:04:41]}
gxh4 {[%emt 0:00:44]} 13. O-O {[%emt 0:00:05]} Nxd5 {[%emt 0:01:49]} 14. cxd5 {
[%emt 0:00:06]} Bf5 {[%emt 0:01:56]} 15. Qh5 {[%emt 0:03:15]} Bg6 {[%emt 0:00:
00]} 16. Qxh4 {[%emt 0:00:05]} Qxh4 {[%emt 0:00:10]} 17. gxh4 {[%emt 0:00:02]}
f5 {[%emt 0:12:46]} 18. Rac1 {[%emt 0:09:07]} Rf7 {[%emt 0:01:19]} 19. f3 {
[%emt 0:04:49]} Raf8 {[%emt 0:06:28]} 20. fxe4 {[%emt 0:19:35]} fxe4 {[%emt 0:
00:00]} 21. Rxf7 {[%emt 0:00:03]} Rxf7 {[%emt 0:00:10]} 22. Bh3 {[%emt 0:00:06]
} Kf8 {[%emt 0:08:24]} 23. Bc8 {[%emt 0:00:50]} b6 {[%emt 0:01:34]} 24. Be6 {
[%emt 0:03:29]} Rf3 $1 {[%emt 0:00:51]} 25. Rf1 $1 {[%emt 0:14:01]} Ke7 {
[%emt 0:11:26]} 26. Rxf3 {[%emt 0:00:04]} exf3 {[%emt 0:00:05]} 27. Kf2 {
[%emt 0:00:32]} a5 {[%emt 0:05:30]} 28. a3 {[%emt 0:00:09]} c5 {[%emt 0:00:21]}
29. dxc5 {[%emt 0:04:37]} dxc5 {[%emt 0:00:07]} 30. d4 {[%emt 0:01:25]} Bc2 {
[%emt 0:00:58]} 31. dxc5 {[%emt 0:00:09]} bxc5 {[%emt 0:00:06]} 32. Kxf3 {
[%emt 0:00:47]} Bxb3 {[%emt 0:00:10]} 33. Bg8 {[%emt 0:00:33]} Bc2 $1 {[%emt 0:
00:00]} 34. Ke3 {[%emt 0:00:13]} Kd6 {[%emt 0:01:10]} 35. Kd2 {[%emt 0:00:07]}
Be4 {[%emt 0:00:35]} 36. Kc3 {[%emt 0:00:09]} h6 {[%emt 0:00:15]} 37. Kc4 {
[%emt 0:00:10]} a4 {[%emt 0:02:58]} 38. Bf7 {[%emt 0:01:41]} Bc2 {[%emt 0:00:
00]} 39. Kc3 {[%emt 0:00:39]} Bb3 {[%emt 0:00:08]} 40. Be8 {[%emt 0:00:36]}
Kxd5 {[%emt 0:00:24]} 41. Bg6 {[%emt 0:21:10]} Ke5 {[%emt 0:00:25]} 42. Bd3 {
[%emt 0:03:08]} Ke6 {[%emt 0:01:26]} 43. Be4 {[%emt 0:01:12]} Kd6 {[%emt 0:00:
00]} 44. Bf3 {[%emt 0:00:43]} Ke5 {[%emt 0:02:04]} 45. Be2 {[%emt 0:00:05]} Kf4
{[%emt 0:00:45]} 46. Bc4 {[%emt 0:02:23]} Ke4 {[%emt 0:00:13]} 47. Bd3+ {
[%emt 0:00:42]} Ke3 {[%emt 0:00:21]} 48. Bb5 {[%emt 0:00:02]} Ke4 {[%emt 0:00:
00]} 49. Bd3+ {[%emt 0:00:06]} Ke5 {[%emt 0:00:22]} 50. Bb5 {[%emt 0:00:48]}
Kd6 {[%emt 0:00:12]} 51. Be2 {[%emt 0:00:37]} Kc6 {[%emt 0:00:30]} 52. Bf3+ {
[%emt 0:01:10]} Kb6 {[%emt 0:01:03]} 53. Be2 {[%emt 0:00:07]} Bd5 {[%emt 0:00:
00]} 54. Bd1 {[%emt 0:00:19]} Kb5 {[%emt 0:03:24]} 55. Bc2 {[%emt 0:01:40]} Bc6
{[%emt 0:00:26]} 56. Bd1 {[%emt 0:00:13]} Kb6 {[%emt 0:00:14]} 57. Kc4 {
[%emt 0:00:17]} Be8 {[%emt 0:00:15]} 58. Bc2 {[%emt 0:00:41]} Bf7+ {[%emt 0:00:
00]} 59. Kc3 {[%emt 0:00:05]} Kb5 {[%emt 0:00:14]} 60. Bd1 {[%emt 0:00:07]} Be8
{[%emt 0:00:08]} 61. Bc2 {[%emt 0:00:18]} Bh5 {[%emt 0:00:55]} 62. Bd3+ $1 {
[%emt 0:01:10]} Ka5 {[%emt 0:00:09]} 63. Kc4 {[%emt 0:02:41]} Kb6 {[%emt 0:00:
00]} 64. Bf5 {[%emt 0:00:56]} Kc6 {[%emt 0:02:27]} 65. Bd3 {[%emt 0:01:25]} Bf3
{[%emt 0:00:48]} 66. Bf1 {[%emt 0:00:24]} Bg4 {[%emt 0:08:23]} 67. Bd3 {
[%emt 0:00:17]} Bh5 {[%emt 0:01:40]} 68. Bf1 {[%emt 0:00:08]} Kb6 {[%emt 0:00:
00]} 69. Bh3 {[%emt 0:01:10]} Be8 {[%emt 0:02:01]} 70. Bf5 {[%emt 0:00:16]}
Bb5+ {[%emt 0:00:38]} 71. Kd5 {[%emt 0:00:04]} Be2 {[%emt 0:00:18]} 72. Bd7 {
[%emt 0:00:59]} Bd1 {[%emt 0:00:56]} 73. Kc4 {[%emt 0:00:15]} Kc7 {[%emt 0:00:
00]} 74. Be8 {[%emt 0:00:45]} Kd6 {[%emt 0:00:05]} 75. Kc3 {[%emt 0:00:12]} Kd5
{[%emt 0:00:53]} 76. Bb5 {[%emt 0:00:43]} Bb3 {[%emt 0:00:24]} 77. Bd3 {
[%emt 0:00:33]} Ke5 {[%emt 0:00:05]} 78. Bb5 {[%emt 0:00:06]} Kf4 {[%emt 0:00:
00]} 79. Bc4 {[%emt 0:00:19]} Ke3 {[%emt 0:00:28]} 80. Bb5 {[%emt 0:00:05]} Kf3
{[%emt 0:04:33]} 81. Bc4 {[%emt 0:00:50]} Bd1 {[%emt 0:00:06]} 82. Bb5 {
[%emt 0:00:01]} Kg4 {[%emt 0:02:50]} 83. Bd7+ {[%emt 0:01:32]} Kxh4 {[%emt 0:
00:00]} 84. Kc4 {[%emt 0:00:03]} Kg5 {[%emt 0:01:18]} 85. Kxc5 {[%emt 0:00:11]}
h5 {[%emt 0:00:21]} 86. Kb4 {[%emt 0:01:34]} h4 {[%emt 0:00:14]} 87. Bxa4 {
[%emt 0:00:36]} Bxa4 {[%emt 0:00:11]} 88. Kxa4 {[%emt 0:00:02]} Kg4 {[%emt 0:
00:00]} 89. Kb4 {[%emt 0:00:03]} Kh3 {[%emt 0:00:03]} 90. a4 {[%emt 0:00:02]}
Kxh2 {[%emt 0:00:05]} 91. a5 {[%emt 0:00:01]} h3 {[%emt 0:00:07]} 92. a6 {
[%emt 0:00:03]} Kg1 {[%emt 0:00:07]} 93. a7 {[%emt 0:00:01]} h2 {[%emt 0:00:04]
} 94. a8=Q {[%emt 0:00:03]} h1=Q {[%emt 0:00:06]} 95. Qa1+ {[%emt 0:00:02]} Kh2
{[%emt 0:00:06]} 96. Qxh1+ {[%emt 0:00:03]} Kxh1 {[%emt 0:00:05]} 1/2-1/2

[Event "44th Chess Olympiad Open 2022"]
[Site "Chennai"]
[Date "2022.08.06"]
[Round "8.10"]
[White "Markoja, Boris"]
[Black "Hracek, Zbynek"]
[Result "1/2-1/2"]
[WhiteElo "2452"]
[BlackElo "2555"]
[Annotator "TA"]
[PlyCount "86"]
[EventDate "2022.??.??"]
[TimeControl "60"]

{[%evp 9,86,0,0,0,0,0,0,0,18,12,12,13,27,16,27,16,25,13,36,9,12,3,4,12,20,0,0,
0,0,0,0,0,5,-14,-11,-14,-19,-25,-11,-10,0,-137,-129,-130,-119,-102,-58,-91,-79,
-91,-64,-119,-20,-91,-16,-18,-22,-32,-8,-8,-8,-8,0,0,0,0,0,0,0,0,0,0,0,0,0,0,0,
0,8]} 1. d4 {[%emt 0:00:05]} d5 {[%emt 0:00:10]} 2. Nc3 {[%emt 0:00:10]} Nf6 {
[%emt 0:02:47]} 3. Bf4 {[%emt 0:00:07]} c5 {[%emt 0:00:39]} 4. e4 {[%emt 0:00:
00][%cal Ye2e4,Ye4e5]} cxd4 {[%emt 0:17:27]} 5. Qxd4 {[%emt 0:00:33]} Nc6 {
[%emt 0:00:14]} 6. Bb5 {[%emt 0:00:23][%cal Re4d5] D00:1 d4 d5: Unusual lines.}
Bd7 {[%emt 0:00:06]} 7. Bxc6 {[%emt 0:00:29]} Bxc6 {[%emt 0:00:02]} 8. e5 {
[%emt 0:00:15]} Ne4 {[%emt 0:00:37]} 9. e6 {[%emt 0:05:33]} Qb6 {[%emt 0:00:00]
} 10. Qxb6 {[%emt 0:11:01]} (10. exf7+ {looks sharper.} Kxf7 11. Qxb6 axb6 12.
Nxe4 dxe4 13. Ne2) 10... axb6 {[%emt 0:00:02]} 11. Nxe4 {[%emt 0:00:00]} dxe4 {
[%emt 0:00:06]} 12. exf7+ {[%emt 0:00:09]} Kxf7 {[%emt 0:00:02]} 13. Ne2 {
[%emt 0:00:24][%cal Yg1e2,Ye2g3,Yg3f5] [#]} e6 $146 {[%emt 0:00:00]} (13... g6
$5 {[%cal Rf8g7]}) ({Predecessor:} 13... h5 14. a3 h4 15. h3 Rh5 16. O-O-O g6
17. Be3 b5 18. Rd2 e6 19. Kb1 b4 20. axb4 Bxb4 {0-1 (42) Fiorito, F (2357)
-Tristan,L (2553) Chess.com INT 2022}) 14. O-O {[%emt 0:03:40]} Be7 {[%emt 0:
04:56]} 15. a3 {[%emt 0:06:21]} b5 {[%emt 0:05:33]} 16. c3 {[%emt 0:00:00]} g5
{[%emt 0:09:04]} (16... Rhd8 {is interesting.} 17. Rfe1 Kf6 18. Nd4 e5) 17. Be3
{[%emt 0:02:11]} (17. Be5 {with more complications.} Rhd8 18. Nd4 Bc5 19. Rfe1)
17... e5 {[%emt 0:02:52]} 18. Ng3 {[%emt 0:09:11]} h5 {[%emt 0:01:48]} 19. Rfe1
{[%emt 0:02:47]} h4 {[%emt 0:05:43]} 20. Nf5 {[%emt 0:00:41]} Bf6 {[%emt 0:07:
10]} 21. g4 {[%emt 0:04:03]} Rhd8 {[%emt 0:04:31]} 22. h3 {[%emt 0:00:00]} Rd3
{[%emt 0:00:50]} 23. Rac1 {[%emt 0:01:39]} Rad8 {[%emt 0:06:53][%cal Ya8d8,
Yd8d3,Yd3b3]} 24. Bb6 {[%emt 0:06:43]} Rxh3 {[%emt 0:00:00][%cal Ye4e3]} 25.
Be3 {[%emt 0:05:34]} (25. Bxd8 $11 {was the only way to keep the balance.} e3
26. fxe3 (26. Nd6+ Ke6 $17) 26... Rh1+ 27. Kf2 Rh2+ 28. Kg1 Rh1+ 29. Kf2 Rh2+
30. Kg1 Rh1+) 25... Rd3 {[%emt 0:06:44]} 26. c4 {[%emt 0:00:00] [#]} bxc4 {
[%emt 0:00:19]} 27. Rxc4 {[%emt 0:00:06]} Kg6 {[%emt 0:03:17]} 28. Rxc6 {
[%emt 0:07:41]} bxc6 {[%emt 0:00:02]} 29. a4 {[%emt 0:00:16]} Bd8 {[%emt 0:04:
42]} 30. b4 {[%emt 0:00:24]} (30. Rc1 $15) 30... Rb3 {[%emt 0:02:46]} (30...
Ra3 $17 31. a5 c5 32. Bxc5 Rhc3) 31. Kg2 {[%emt 0:03:58] [#]} (31. Rd1 $11 {
keeps the balance.}) 31... Rhxe3 $1 {[%emt 0:00:16]} 32. fxe3 $11 {[%emt 0:00:
11]} Rxb4 $17 {[%emt 0:00:08] Endgame KRB-KRN} 33. Rd1 {[%emt 0:00:20]} Ba5 {
[%emt 0:01:09] And now ...Rb2+ would win.} (33... Rxa4 $2 34. Rxd8 Rc4 35. Rc8
Rc2+ 36. Kh3 $18) 34. Rd6+ $1 {[%emt 0:02:45] The position is equal.} Kf7 {
[%emt 0:00:05]} 35. Rxc6 {[%emt 0:01:25]} Rxa4 {[%emt 0:00:06]} 36. Ra6 {
[%emt 0:01:27]} Ra2+ {[%emt 0:00:16]} 37. Kh3 {[%emt 0:00:04]} Ra3 {[%emt 0:00:
28]} 38. Nd6+ {[%emt 0:00:25]} Kf8 {[%emt 0:00:00]} 39. Nc4 {[%emt 0:00:11]}
Rc3 {[%emt 0:00:05]} 40. Rxa5 {[%emt 0:02:23]} Rxc4 {[%emt 0:00:06]} 41. Rxe5 {
[%emt 0:30:04]} Rc3 {[%emt 0:30:18]} 42. Rxg5 {[%emt 0:00:15]} Rxe3+ {[%emt 0:
00:02]} 43. Kxh4 {[%emt 0:00:06]} Re1 {[%emt 0:00:00] Weighted Error Value:
White=0.14 (very precise) /Black=0.15 (very precise)} 1/2-1/2